[Event "Titled Tuesday Blitz February 14 Late 2023"]
[White "Alvarez Calzadilla, Jose Avelino"]
[Black "Gonzalez, Francisco Silva"]
[WhiteFideId "3526151"]
[BlackFideId "1512285"]
[WhiteElo "2386"]
[BlackElo "2021"]
[Result "1-0"]
[Round "06"]
[TimeControl "180+2"]
[Date "2023.02.14"]
[WhiteClock "0:00:15"]
[BlackClock "0:00:02"]

1. e4 {[%clk 0:03:00]}  e5 {[%clk 0:02:59]} 2. Nf3 {[%clk 0:02:59]}  Nc6 {[%clk 0:02:44]} 3. Bb5 {[%clk 0:02:59]}  a6 {[%clk 0:02:35]} 4. Ba4 {[%clk 0:02:59]}  Nf6 {[%clk 0:02:35]} 5. O-O {[%clk 0:02:58]}  b5 {[%clk 0:02:35]} 6. Bb3 {[%clk 0:02:58]}  Bc5 {[%clk 0:02:36]} 7. a4 {[%clk 0:02:54]}  Bb7 {[%clk 0:02:32]} 8. d3 {[%clk 0:02:53]}  d6 {[%clk 0:02:31]} 9. Be3 {[%clk 0:02:53]}  O-O {[%clk 0:02:19]} 10. Nc3 {[%clk 0:02:52]}  Bxe3 {[%clk 0:02:07]} 11. fxe3 {[%clk 0:02:51]}  Na5 {[%clk 0:02:06]} 12. Ba2 {[%clk 0:02:49]}  b4 {[%clk 0:02:04]} 13. Ne2 {[%clk 0:02:49]}  c5 {[%clk 0:02:04]} 14. Ng3 {[%clk 0:02:46]}  Bc8 {[%clk 0:02:04]} 15. h3 {[%clk 0:02:39]}  Be6 {[%clk 0:01:57]} 16. Nh2 {[%clk 0:02:30]}  g6 {[%clk 0:01:52]} 17. Bxe6 {[%clk 0:02:20]}  fxe6 {[%clk 0:01:50]} 18. Ng4 {[%clk 0:02:21]}  Kg7 {[%clk 0:01:44]} 19. Qe2 {[%clk 0:02:15]}  Qe7 {[%clk 0:01:43]} 20. Rf2 {[%clk 0:02:14]}  Nxg4 {[%clk 0:01:43]} 21. Qxg4 {[%clk 0:02:12]}  Rxf2 {[%clk 0:01:43]} 22. Kxf2 {[%clk 0:02:12]}  Rf8+ {[%clk 0:01:43]} 23. Kg1 {[%clk 0:02:13]}  Nc6 {[%clk 0:01:35]} 24. Rf1 {[%clk 0:02:10]}  Rxf1+ {[%clk 0:01:35]} 25. Kxf1 {[%clk 0:02:10]}  Kg8 {[%clk 0:01:29]} 26. Kg1 {[%clk 0:02:04]}  Kf8 {[%clk 0:01:29]} 27. h4 {[%clk 0:02:03]}  Qf6 {[%clk 0:01:25]} 28. h5 {[%clk 0:02:00]}  Kf7 {[%clk 0:01:24]} 29. hxg6+ {[%clk 0:01:57]}  hxg6 {[%clk 0:01:24]} 30. Qh3 {[%clk 0:01:56]}  Ne7 {[%clk 0:01:21]} 31. Nf1 {[%clk 0:01:53]}  Kg7 {[%clk 0:01:19]} 32. Nd2 {[%clk 0:01:52]}  d5 {[%clk 0:01:17]} 33. exd5 {[%clk 0:01:53]}  exd5 {[%clk 0:01:14]} 34. Qd7 {[%clk 0:01:51]}  Kh6 {[%clk 0:01:13]} 35. Qd8 {[%clk 0:01:35]}  Kg7 {[%clk 0:01:10]} 36. a5 {[%clk 0:01:35]}  Qg5 {[%clk 0:01:06]} 37. Kf2 {[%clk 0:01:29]}  Qh4+ {[%clk 0:01:04]} 38. Ke2 {[%clk 0:01:28]}  Qg5 {[%clk 0:01:03]} 39. g3 {[%clk 0:01:24]}  Kf7 {[%clk 0:01:03]} 40. Kf2 {[%clk 0:01:18]}  Qf5+ {[%clk 0:01:02]} 41. Kg2 {[%clk 0:01:18]}  g5 {[%clk 0:00:56]} 42. Qd6 {[%clk 0:01:15]}  c4 {[%clk 0:00:49]} 43. Qxa6 {[%clk 0:01:13]}  g4 {[%clk 0:00:46]} 44. Qb5 {[%clk 0:01:08]}  Qg5 {[%clk 0:00:46]} 45. Nf1 {[%clk 0:01:06]}  Qf5 {[%clk 0:00:46]} 46. Nd2 {[%clk 0:01:06]}  Qg5 {[%clk 0:00:46]} 47. Qc5 {[%clk 0:01:03]}  d4 {[%clk 0:00:44]} 48. Qxc4+ {[%clk 0:00:59]}  Kf8 {[%clk 0:00:42]} 49. Nf1 {[%clk 0:00:56]}  Qf5 {[%clk 0:00:40]} 50. exd4 {[%clk 0:00:51]}  Qf3+ {[%clk 0:00:40]} 51. Kg1 {[%clk 0:00:52]}  e4 {[%clk 0:00:36]} 52. dxe4 {[%clk 0:00:49]}  Qxe4 {[%clk 0:00:35]} 53. a6 {[%clk 0:00:48]}  Nf5 {[%clk 0:00:32]} 54. a7 {[%clk 0:00:42]}  Kg7 {[%clk 0:00:28]} 55. Qc7+ {[%clk 0:00:40]}  Kg6 {[%clk 0:00:26]} 56. Qf4 {[%clk 0:00:34]}  Qb7 {[%clk 0:00:26]} 57. Qxg4+ {[%clk 0:00:34]}  Kf6 {[%clk 0:00:26]} 58. Qf4 {[%clk 0:00:31]}  Kg6 {[%clk 0:00:25]} 59. Qb8 {[%clk 0:00:26]}  Qd5 {[%clk 0:00:23]} 60. a8=Q {[%clk 0:00:24]}  Qxd4+ {[%clk 0:00:23]} 61. Kg2 {[%clk 0:00:22]}  Qxb2 {[%clk 0:00:19]} 62. Qg8+ {[%clk 0:00:20]}  Ng7 {[%clk 0:00:19]} 63. Qc6+ {[%clk 0:00:19]}  Kf5 {[%clk 0:00:16]} 64. Qgd5+ {[%clk 0:00:18]}  Qe5 {[%clk 0:00:11]} 65. Qxe5+ {[%clk 0:00:18]}  Kxe5 {[%clk 0:00:11]} 66. Qb5+ {[%clk 0:00:19]}  Kf6 {[%clk 0:00:10]} 67. Qxb4 {[%clk 0:00:19]}  Ne6 {[%clk 0:00:10]} 68. Ne3 {[%clk 0:00:18]}  Nf4+ {[%clk 0:00:10]} 69. Qxf4+ {[%clk 0:00:18]}  Ke6 {[%clk 0:00:10]} 70. Qe4+ {[%clk 0:00:18]}  Kf6 {[%clk 0:00:10]} 71. Nd1 {[%clk 0:00:17]}  Kg5 {[%clk 0:00:10]} 72. Qf4+ {[%clk 0:00:18]}  Kh5 {[%clk 0:00:02]} 73. Kf3 {[%clk 0:00:15]} 1-0


[Site "https://www.chess.com"]

[Event "Titled Tuesday Blitz February 14 Late 2023"]
[White "Smith, Garrett L"]
[Black "Poliakova, Varvara"]
[WhiteFideId "2024829"]
[BlackFideId "13518313"]
[WhiteElo "2047"]
[BlackElo "2010"]
[Result "0-1"]
[Round "06"]
[TimeControl "180+2"]
[Date "2023.02.14"]
[WhiteClock "0:00:05"]
[BlackClock "0:00:39"]

1. e4 {[%clk 0:03:00]}  e5 {[%clk 0:02:53]} 2. Nf3 {[%clk 0:02:57]}  Nc6 {[%clk 0:02:47]} 3. Bc4 {[%clk 0:02:57]}  Bc5 {[%clk 0:02:46]} 4. b4 {[%clk 0:02:57]}  Bxb4 {[%clk 0:02:45]} 5. c3 {[%clk 0:02:57]}  Ba5 {[%clk 0:02:40]} 6. d4 {[%clk 0:02:57]}  exd4 {[%clk 0:02:28]} 7. O-O {[%clk 0:02:51]}  Nf6 {[%clk 0:02:26]} 8. cxd4 {[%clk 0:02:41]}  Nxe4 {[%clk 0:02:24]} 9. d5 {[%clk 0:02:28]}  Ne7 {[%clk 0:02:24]} 10. Bb2 {[%clk 0:02:18]}  d6 {[%clk 0:02:20]} 11. Qa4+ {[%clk 0:02:00]}  c6 {[%clk 0:02:18]} 12. dxc6 {[%clk 0:01:57]}  bxc6 {[%clk 0:02:11]} 13. Bxf7+ {[%clk 0:01:35]}  Kxf7 {[%clk 0:02:11]} 14. Qxe4 {[%clk 0:01:36]}  d5 {[%clk 0:02:08]} 15. Ng5+ {[%clk 0:01:30]}  Kg8 {[%clk 0:02:06]} 16. Qe5 {[%clk 0:01:15]}  Nf5 {[%clk 0:01:59]} 17. Ne6 {[%clk 0:01:08]}  Qf6 {[%clk 0:01:55]} 18. Qxf6 {[%clk 0:00:50]}  gxf6 {[%clk 0:01:56]} 19. Nf4 {[%clk 0:00:50]}  Kg7 {[%clk 0:01:49]} 20. Nh5+ {[%clk 0:00:49]}  Kg6 {[%clk 0:01:48]} 21. Nxf6 {[%clk 0:00:49]}  Ba6 {[%clk 0:01:43]} 22. Rc1 {[%clk 0:00:46]}  Rac8 {[%clk 0:01:37]} 23. Ng4 {[%clk 0:00:44]}  d4 {[%clk 0:01:30]} 24. Rxc6+ {[%clk 0:00:38]}  Rxc6 {[%clk 0:01:25]} 25. Ne5+ {[%clk 0:00:39]}  Kf6 {[%clk 0:01:24]} 26. Nxc6 {[%clk 0:00:40]}  Re8 {[%clk 0:01:19]} 27. Na3 {[%clk 0:00:33]}  Bc3 {[%clk 0:01:18]} 28. Bxc3 {[%clk 0:00:29]}  dxc3 {[%clk 0:01:19]} 29. Rc1 {[%clk 0:00:28]}  Re6 {[%clk 0:01:13]} 30. Nb4 {[%clk 0:00:27]}  Bb7 {[%clk 0:01:11]} 31. h3 {[%clk 0:00:24]}  Nd4 {[%clk 0:01:08]} 32. Kh2 {[%clk 0:00:20]}  Re2 {[%clk 0:01:06]} 33. Nc4 {[%clk 0:00:14]}  a5 {[%clk 0:00:56]} 34. Nd3 {[%clk 0:00:14]}  c2 {[%clk 0:00:53]} 35. Ne3 {[%clk 0:00:13]}  Be4 {[%clk 0:00:51]} 36. Ne1 {[%clk 0:00:11]}  Kg5 {[%clk 0:00:41]} 37. Kg3 {[%clk 0:00:11]}  Rxe3+ {[%clk 0:00:39]} 38. fxe3 {[%clk 0:00:05]}  Ne2+ {[%clk 0:00:39]} 0-1


[Site "https://www.chess.com"]

[Event "Titled Tuesday Blitz February 14 Late 2023"]
[White "Jeet, Jain"]
[Black "Maksimovic, Bojan"]
[WhiteFideId "5073022"]
[BlackFideId "14408120"]
[WhiteElo "2199"]
[BlackElo "2486"]
[Result "0-1"]
[Round "06"]
[TimeControl "180+2"]
[Date "2023.02.14"]
[WhiteClock "0:00:09"]
[BlackClock "0:00:29"]

1. d4 {[%clk 0:03:00]}  Nf6 {[%clk 0:03:00]} 2. Nf3 {[%clk 0:03:00]}  d6 {[%clk 0:02:59]} 3. Bf4 {[%clk 0:03:01]}  Nbd7 {[%clk 0:02:59]} 4. h3 {[%clk 0:03:01]}  g6 {[%clk 0:02:59]} 5. e3 {[%clk 0:03:02]}  Bg7 {[%clk 0:03:00]} 6. c4 {[%clk 0:03:02]}  O-O {[%clk 0:03:01]} 7. Nc3 {[%clk 0:03:03]}  b6 {[%clk 0:03:01]} 8. Be2 {[%clk 0:03:02]}  Bb7 {[%clk 0:03:02]} 9. O-O {[%clk 0:03:03]}  Ne4 {[%clk 0:03:03]} 10. Nxe4 {[%clk 0:03:01]}  Bxe4 {[%clk 0:03:03]} 11. Nd2 {[%clk 0:03:02]}  Bb7 {[%clk 0:03:04]} 12. Bf3 {[%clk 0:03:02]}  Bxf3 {[%clk 0:03:05]} 13. Qxf3 {[%clk 0:03:02]}  c5 {[%clk 0:03:06]} 14. d5 {[%clk 0:03:01]}  Bxb2 {[%clk 0:03:05]} 15. Rab1 {[%clk 0:03:01]}  Bg7 {[%clk 0:03:06]} 16. a4 {[%clk 0:03:01]}  a6 {[%clk 0:03:05]} 17. e4 {[%clk 0:02:57]}  Rb8 {[%clk 0:02:58]} 18. Rb3 {[%clk 0:02:53]}  Ne5 {[%clk 0:02:54]} 19. Qe3 {[%clk 0:02:51]}  Qd7 {[%clk 0:02:53]} 20. Rfb1 {[%clk 0:02:09]}  Qxa4 {[%clk 0:02:36]} 21. Rxb6 {[%clk 0:02:08]}  Rxb6 {[%clk 0:02:35]} 22. Rxb6 {[%clk 0:02:09]}  Nxc4 {[%clk 0:02:36]} 23. Nxc4 {[%clk 0:02:08]}  Qxc4 {[%clk 0:02:37]} 24. Rb7 {[%clk 0:02:07]}  Bd4 {[%clk 0:02:30]} 25. Qf3 {[%clk 0:02:01]}  Bf6 {[%clk 0:02:27]} 26. Bxd6 {[%clk 0:01:57]}  exd6 {[%clk 0:02:06]} 27. Qxf6 {[%clk 0:01:57]}  Qxe4 {[%clk 0:02:07]} 28. Qxd6 {[%clk 0:01:55]}  Qe1+ {[%clk 0:02:07]} 29. Kh2 {[%clk 0:01:55]}  Qxf2 {[%clk 0:02:08]} 30. Qxa6 {[%clk 0:01:27]}  Qf4+ {[%clk 0:02:06]} 31. Kh1 {[%clk 0:01:26]}  Qc1+ {[%clk 0:02:06]} 32. Kh2 {[%clk 0:01:25]}  Qf4+ {[%clk 0:02:06]} 33. Kh1 {[%clk 0:01:25]}  Qd4 {[%clk 0:02:06]} 34. Qd6 {[%clk 0:01:03]}  c4 {[%clk 0:01:54]} 35. Rb8 {[%clk 0:00:40]}  Rxb8 {[%clk 0:01:43]} 36. Qxb8+ {[%clk 0:00:41]}  Kg7 {[%clk 0:01:44]} 37. d6 {[%clk 0:00:42]}  c3 {[%clk 0:01:44]} 38. Qc7 {[%clk 0:00:40]}  Qd1+ {[%clk 0:01:28]} 39. Kh2 {[%clk 0:00:40]}  c2 {[%clk 0:01:29]} 40. d7 {[%clk 0:00:38]}  c1=Q {[%clk 0:01:22]} 41. Qxc1 {[%clk 0:00:36]}  Qxc1 {[%clk 0:01:22]} 42. d8=Q {[%clk 0:00:36]}  Qf4+ {[%clk 0:01:23]} 43. Kh1 {[%clk 0:00:36]}  Qe5 {[%clk 0:01:23]} 44. Qd3 {[%clk 0:00:33]}  h5 {[%clk 0:01:23]} 45. Qc4 {[%clk 0:00:23]}  g5 {[%clk 0:01:13]} 46. Kg1 {[%clk 0:00:22]}  h4 {[%clk 0:01:13]} 47. Kf2 {[%clk 0:00:18]}  f6 {[%clk 0:01:08]} 48. Kg1 {[%clk 0:00:19]}  Qe3+ {[%clk 0:01:08]} 49. Kh1 {[%clk 0:00:18]}  Qe1+ {[%clk 0:01:06]} 50. Kh2 {[%clk 0:00:18]}  Qe5+ {[%clk 0:01:04]} 51. Kh1 {[%clk 0:00:19]}  Kg6 {[%clk 0:01:05]} 52. Qg4 {[%clk 0:00:18]}  Qe1+ {[%clk 0:01:00]} 53. Kh2 {[%clk 0:00:18]}  Qe7 {[%clk 0:00:56]} 54. Qc4 {[%clk 0:00:17]}  Kf5 {[%clk 0:00:54]} 55. Qd3+ {[%clk 0:00:17]}  Qe4 {[%clk 0:00:54]} 56. Qd7+ {[%clk 0:00:17]}  Kf4 {[%clk 0:00:53]} 57. Qc7+ {[%clk 0:00:17]}  Qe5 {[%clk 0:00:53]} 58. Qc1+ {[%clk 0:00:17]}  Ke4+ {[%clk 0:00:51]} 59. Kh1 {[%clk 0:00:17]}  Qd4 {[%clk 0:00:49]} 60. Qe1+ {[%clk 0:00:17]}  Kf4 {[%clk 0:00:48]} 61. Qe6 {[%clk 0:00:15]}  f5 {[%clk 0:00:40]} 62. Qe1 {[%clk 0:00:14]}  Qe3 {[%clk 0:00:36]} 63. Qf1+ {[%clk 0:00:14]}  Kg3 {[%clk 0:00:33]} 64. Qd1 {[%clk 0:00:10]}  f4 {[%clk 0:00:28]} 65. Qg4+ {[%clk 0:00:08]}  Kf2 {[%clk 0:00:28]} 66. Qxg5 {[%clk 0:00:09]}  Qe1+ {[%clk 0:00:28]} 67. Kh2 {[%clk 0:00:09]}  Qg1# {[%clk 0:00:29]} 0-1


[Site "https://www.chess.com"]

[Event "Titled Tuesday Blitz February 14 Late 2023"]
[White "Baghdasaryan, Vahe"]
[Black "Novikov, Evgenij"]
[WhiteFideId "13303139"]
[BlackFideId "4125380"]
[WhiteElo "2257"]
[BlackElo "2276"]
[Result "1/2-1/2"]
[Round "06"]
[TimeControl "180+2"]
[Date "2023.02.14"]
[WhiteClock "0:00:29"]
[BlackClock "0:00:07"]

1. e4 {[%clk 0:02:49]}  c6 {[%clk 0:02:59]} 2. d4 {[%clk 0:02:44]}  d5 {[%clk 0:02:59]} 3. e5 {[%clk 0:02:44]}  Bf5 {[%clk 0:02:59]} 4. h4 {[%clk 0:02:44]}  h5 {[%clk 0:02:59]} 5. c4 {[%clk 0:02:43]}  Bxb1 {[%clk 0:02:54]} 6. Rxb1 {[%clk 0:02:42]}  e6 {[%clk 0:02:54]} 7. Ne2 {[%clk 0:02:35]}  dxc4 {[%clk 0:02:43]} 8. Ng3 {[%clk 0:02:35]}  Nd7 {[%clk 0:02:41]} 9. Nxh5 {[%clk 0:02:30]}  g6 {[%clk 0:02:25]} 10. Ng3 {[%clk 0:02:24]}  Rxh4 {[%clk 0:02:18]} 11. Rxh4 {[%clk 0:02:23]}  Qxh4 {[%clk 0:02:18]} 12. Bxc4 {[%clk 0:02:23]}  Nb6 {[%clk 0:02:05]} 13. Bb3 {[%clk 0:02:16]}  O-O-O {[%clk 0:02:01]} 14. Be3 {[%clk 0:02:16]}  Bh6 {[%clk 0:01:54]} 15. Qf3 {[%clk 0:02:11]}  Bxe3 {[%clk 0:01:44]} 16. fxe3 {[%clk 0:02:12]}  Ne7 {[%clk 0:01:37]} 17. Kf2 {[%clk 0:02:03]}  Nf5 {[%clk 0:01:25]} 18. Rh1 {[%clk 0:02:03]}  Qe7 {[%clk 0:01:20]} 19. Nxf5 {[%clk 0:01:58]}  gxf5 {[%clk 0:01:20]} 20. Rh7 {[%clk 0:01:58]}  Rd7 {[%clk 0:00:56]} 21. Qh5 {[%clk 0:01:54]}  Kc7 {[%clk 0:00:49]} 22. a3 {[%clk 0:01:46]}  Nd5 {[%clk 0:00:45]} 23. Bxd5 {[%clk 0:01:46]}  cxd5 {[%clk 0:00:46]} 24. Rh8 {[%clk 0:01:37]}  Rd8 {[%clk 0:00:42]} 25. Rh7 {[%clk 0:01:36]}  Rd7 {[%clk 0:00:42]} 26. Qh6 {[%clk 0:01:36]}  b6 {[%clk 0:00:38]} 27. Qf6 {[%clk 0:01:34]}  Qxf6 {[%clk 0:00:25]} 28. exf6 {[%clk 0:01:34]}  Kd6 {[%clk 0:00:26]} 29. Kg3 {[%clk 0:01:27]}  e5 {[%clk 0:00:26]} 30. Kh4 {[%clk 0:01:27]}  Ke6 {[%clk 0:00:22]} 31. Kg5 {[%clk 0:01:26]}  Rc7 {[%clk 0:00:22]} 32. Rh8 {[%clk 0:01:15]}  exd4 {[%clk 0:00:16]} 33. exd4 {[%clk 0:01:14]}  Rc2 {[%clk 0:00:17]} 34. Re8+ {[%clk 0:01:14]}  Kd6 {[%clk 0:00:17]} 35. Re7 {[%clk 0:01:10]}  Rxg2+ {[%clk 0:00:14]} 36. Kxf5 {[%clk 0:01:10]}  Rf2+ {[%clk 0:00:13]} 37. Kg5 {[%clk 0:01:10]}  Rg2+ {[%clk 0:00:13]} 38. Kh4 {[%clk 0:01:10]}  Rxb2 {[%clk 0:00:11]} 39. Rxf7 {[%clk 0:01:10]}  Ke6 {[%clk 0:00:10]} 40. Rf8 {[%clk 0:00:58]}  Rf2 {[%clk 0:00:10]} 41. Kg5 {[%clk 0:00:58]}  Rg2+ {[%clk 0:00:08]} 42. Kh6 {[%clk 0:00:55]}  Rf2 {[%clk 0:00:08]} 43. Kg6 {[%clk 0:00:50]}  Rg2+ {[%clk 0:00:08]} 44. Kh6 {[%clk 0:00:32]}  Rf2 {[%clk 0:00:07]} 45. Kg6 {[%clk 0:00:29]}  Rg2+ {[%clk 0:00:07]} 46. Kh6 {[%clk 0:00:29]} 1/2-1/2


[Site "https://www.chess.com"]

[Event "Titled Tuesday Blitz February 14 Late 2023"]
[White "Papp, Levente"]
[Black "Santos Flores, Alberto"]
[WhiteFideId "751243"]
[BlackFideId "3601234"]
[WhiteElo "2353"]
[BlackElo "2164"]
[Result "0-1"]
[Round "06"]
[TimeControl "180+2"]
[Date "2023.02.14"]
[WhiteClock "0:00:02"]
[BlackClock "0:01:18"]

1. b3 {[%clk 0:03:00]}  d5 {[%clk 0:02:59]} 2. Bb2 {[%clk 0:03:00]}  Bg4 {[%clk 0:02:59]} 3. c4 {[%clk 0:02:59]}  c6 {[%clk 0:02:59]} 4. Nc3 {[%clk 0:02:51]}  Nf6 {[%clk 0:02:57]} 5. d4 {[%clk 0:02:50]}  e6 {[%clk 0:02:52]} 6. h3 {[%clk 0:02:43]}  Bh5 {[%clk 0:02:50]} 7. g4 {[%clk 0:02:42]}  Bg6 {[%clk 0:02:50]} 8. Bg2 {[%clk 0:02:42]}  Nbd7 {[%clk 0:02:43]} 9. e3 {[%clk 0:02:37]}  Bd6 {[%clk 0:02:40]} 10. f4 {[%clk 0:02:31]}  Ne4 {[%clk 0:02:34]} 11. Nxe4 {[%clk 0:02:31]}  Bxe4 {[%clk 0:02:35]} 12. Nf3 {[%clk 0:02:09]}  Qa5+ {[%clk 0:02:25]} 13. Kf2 {[%clk 0:02:06]}  O-O {[%clk 0:02:18]} 14. Rf1 {[%clk 0:01:58]}  f6 {[%clk 0:01:58]} 15. Kg1 {[%clk 0:01:30]}  Rae8 {[%clk 0:01:57]} 16. Qd2 {[%clk 0:01:19]}  Qxd2 {[%clk 0:01:54]} 17. Nxd2 {[%clk 0:01:20]}  Bxg2 {[%clk 0:01:54]} 18. Kxg2 {[%clk 0:01:21]}  e5 {[%clk 0:01:53]} 19. f5 {[%clk 0:00:51]}  exd4 {[%clk 0:01:50]} 20. exd4 {[%clk 0:00:52]}  Re2+ {[%clk 0:01:48]} 21. Rf2 {[%clk 0:00:52]}  Rfe8 {[%clk 0:01:46]} 22. Nf1 {[%clk 0:00:16]}  Bb4 {[%clk 0:01:24]} 23. a3 {[%clk 0:00:05]}  Be1 {[%clk 0:01:23]} 24. Rxe2 {[%clk 0:00:04]}  Rxe2+ {[%clk 0:01:23]} 25. Kf3 {[%clk 0:00:01]}  Rf2+ {[%clk 0:01:18]} 26. Ke3 {[%clk 0:00:02]}  Rxb2 {[%clk 0:01:18]} 0-1


[Site "https://www.chess.com"]

[Event "Titled Tuesday Blitz February 14 Late 2023"]
[White "Kostiukov, Alexandr"]
[Black "Richter, Paul"]
[WhiteFideId "14108100"]
[BlackFideId "2046350"]
[WhiteElo "2271"]
[BlackElo "2171"]
[Result "0-1"]
[Round "06"]
[TimeControl "180+2"]
[Date "2023.02.14"]
[WhiteClock "0:00:03"]
[BlackClock "0:00:10"]

1. g3 {[%clk 0:02:57]}  Nf6 {[%clk 0:02:59]} 2. Bg2 {[%clk 0:02:57]}  g6 {[%clk 0:03:00]} 3. c4 {[%clk 0:02:57]}  Bg7 {[%clk 0:03:00]} 4. Nf3 {[%clk 0:02:58]}  O-O {[%clk 0:03:00]} 5. O-O {[%clk 0:02:59]}  d6 {[%clk 0:03:00]} 6. d4 {[%clk 0:03:00]}  Nbd7 {[%clk 0:03:00]} 7. Nc3 {[%clk 0:03:01]}  Re8 {[%clk 0:03:00]} 8. e4 {[%clk 0:02:59]}  e5 {[%clk 0:03:01]} 9. h3 {[%clk 0:03:00]}  exd4 {[%clk 0:03:01]} 10. Nxd4 {[%clk 0:02:59]}  a6 {[%clk 0:03:02]} 11. Re1 {[%clk 0:02:52]}  Rb8 {[%clk 0:03:02]} 12. Be3 {[%clk 0:02:38]}  Ne5 {[%clk 0:03:02]} 13. b3 {[%clk 0:02:37]}  c5 {[%clk 0:03:02]} 14. Nde2 {[%clk 0:02:29]}  b5 {[%clk 0:03:02]} 15. cxb5 {[%clk 0:02:26]}  axb5 {[%clk 0:03:02]} 16. Nf4 {[%clk 0:02:24]}  b4 {[%clk 0:02:51]} 17. Ncd5 {[%clk 0:02:24]}  Nxd5 {[%clk 0:02:50]} 18. Nxd5 {[%clk 0:02:24]}  Be6 {[%clk 0:02:42]} 19. Rc1 {[%clk 0:02:15]}  Nc6 {[%clk 0:02:38]} 20. h4 {[%clk 0:01:56]}  Nd4 {[%clk 0:02:23]} 21. Bg5 {[%clk 0:01:51]}  f6 {[%clk 0:01:50]} 22. Be3 {[%clk 0:01:50]}  Nb5 {[%clk 0:01:34]} 23. h5 {[%clk 0:01:38]}  Qd7 {[%clk 0:01:07]} 24. h6 {[%clk 0:01:28]}  Bh8 {[%clk 0:01:07]} 25. f4 {[%clk 0:01:19]}  Qf7 {[%clk 0:01:00]} 26. Kh2 {[%clk 0:00:57]}  Bxd5 {[%clk 0:00:58]} 27. exd5 {[%clk 0:00:48]}  f5 {[%clk 0:00:57]} 28. Qd3 {[%clk 0:00:42]}  Qf8 {[%clk 0:00:44]} 29. Bd2 {[%clk 0:00:30]}  Qxh6+ {[%clk 0:00:43]} 30. Kg1 {[%clk 0:00:28]}  Bd4+ {[%clk 0:00:41]} 31. Be3 {[%clk 0:00:22]}  Qg7 {[%clk 0:00:29]} 32. Kf1 {[%clk 0:00:14]}  Nc3 {[%clk 0:00:20]} 33. Bxd4 {[%clk 0:00:10]}  Qxd4 {[%clk 0:00:21]} 34. Rxe8+ {[%clk 0:00:06]}  Rxe8 {[%clk 0:00:21]} 35. Qxd4 {[%clk 0:00:06]}  cxd4 {[%clk 0:00:22]} 36. Rc2 {[%clk 0:00:05]}  Re3 {[%clk 0:00:17]} 37. Kf2 {[%clk 0:00:05]}  Nd1+ {[%clk 0:00:15]} 38. Kf1 {[%clk 0:00:04]}  Rxg3 {[%clk 0:00:15]} 39. Rd2 {[%clk 0:00:05]}  Ne3+ {[%clk 0:00:14]} 40. Kg1 {[%clk 0:00:05]}  Rxg2+ {[%clk 0:00:15]} 41. Rxg2 {[%clk 0:00:05]}  Nxg2 {[%clk 0:00:15]} 42. Kxg2 {[%clk 0:00:06]}  Kf7 {[%clk 0:00:14]} 43. Kf3 {[%clk 0:00:06]}  h6 {[%clk 0:00:13]} 44. Ke2 {[%clk 0:00:06]}  g5 {[%clk 0:00:13]} 45. Kd3 {[%clk 0:00:07]}  g4 {[%clk 0:00:09]} 46. Kxd4 {[%clk 0:00:06]}  h5 {[%clk 0:00:09]} 47. Ke3 {[%clk 0:00:06]}  h4 {[%clk 0:00:09]} 48. Kf2 {[%clk 0:00:04]}  Ke7 {[%clk 0:00:10]} 49. Ke3 {[%clk 0:00:03]}  Kd7 {[%clk 0:00:10]} 0-1


[Site "https://www.chess.com"]

[Event "Titled Tuesday Blitz February 14 Late 2023"]
[White "Lopez Perdomo, Juan David"]
[Black "Guzman Moneo, Alberto"]
[WhiteFideId "4405137"]
[BlackFideId "2209616"]
[WhiteElo "2029"]
[BlackElo "2170"]
[Result "1-0"]
[Round "06"]
[TimeControl "180+2"]
[Date "2023.02.14"]
[WhiteClock "0:01:35"]
[BlackClock "0:00:01"]

1. e4 {[%clk 0:03:00]}  c5 {[%clk 0:02:59]} 2. d4 {[%clk 0:03:00]}  cxd4 {[%clk 0:02:59]} 3. c3 {[%clk 0:03:01]}  d5 {[%clk 0:02:59]} 4. exd5 {[%clk 0:03:01]}  Qxd5 {[%clk 0:02:58]} 5. Nf3 {[%clk 0:03:01]}  Nc6 {[%clk 0:02:55]} 6. cxd4 {[%clk 0:03:01]}  Bg4 {[%clk 0:02:49]} 7. Be2 {[%clk 0:03:02]}  e6 {[%clk 0:02:48]} 8. Nc3 {[%clk 0:03:02]}  Bb4 {[%clk 0:02:48]} 9. O-O {[%clk 0:03:03]}  Bxc3 {[%clk 0:02:48]} 10. bxc3 {[%clk 0:03:03]}  Nf6 {[%clk 0:02:48]} 11. Ba3 {[%clk 0:03:04]}  Ne4 {[%clk 0:02:43]} 12. Qd3 {[%clk 0:02:38]}  Bf5 {[%clk 0:02:42]} 13. c4 {[%clk 0:02:34]}  Qa5 {[%clk 0:02:28]} 14. Qe3 {[%clk 0:02:34]}  Nc3 {[%clk 0:02:17]} 15. Bd6 {[%clk 0:02:28]}  Rd8 {[%clk 0:02:09]} 16. c5 {[%clk 0:02:28]}  Bg4 {[%clk 0:01:46]} 17. Bc4 {[%clk 0:02:21]}  Bxf3 {[%clk 0:01:42]} 18. Qxf3 {[%clk 0:02:21]}  Rxd6 {[%clk 0:01:27]} 19. cxd6 {[%clk 0:02:20]}  Nxd4 {[%clk 0:01:24]} 20. d7+ {[%clk 0:02:20]}  Ke7 {[%clk 0:01:05]} 21. Qxb7 {[%clk 0:02:20]}  Qb6 {[%clk 0:01:05]} 22. d8=Q+ {[%clk 0:02:12]}  Kxd8 {[%clk 0:01:05]} 23. Qa8+ {[%clk 0:02:12]}  Ke7 {[%clk 0:01:03]} 24. Qxh8 {[%clk 0:02:12]}  Qc5 {[%clk 0:01:03]} 25. Bd3 {[%clk 0:01:48]}  Qg5 {[%clk 0:00:50]} 26. Qa8 {[%clk 0:01:41]}  Nd5 {[%clk 0:00:48]} 27. Qxa7+ {[%clk 0:01:41]}  Kf6 {[%clk 0:00:43]} 28. Qxd4+ {[%clk 0:01:41]}  Ke7 {[%clk 0:00:41]} 29. Rab1 {[%clk 0:01:35]}  Qe5 {[%clk 0:00:16]} 30. Rb7+ {[%clk 0:01:36]}  Kf6 {[%clk 0:00:15]} 31. Rxf7+ {[%clk 0:01:34]}  Kxf7 {[%clk 0:00:05]} 32. Qxe5 {[%clk 0:01:35]}  Nf4 {[%clk 0:00:05]} 33. Qxf4+ {[%clk 0:01:35]}  Ke7 {[%clk 0:00:03]} 34. Rb1 {[%clk 0:01:35]}  e5 {[%clk 0:00:03]} 35. Qxe5+ {[%clk 0:01:34]}  Kd8 {[%clk 0:00:01]} 36. Rb7 {[%clk 0:01:35]} 1-0


[Site "https://www.chess.com"]